Cogmind - Beta 15 @@@ ROGUE MODE // 2025.07.04 @ 18:07:48 Player: WetterLettuce Result: Self-destructed Performance ------------- Evolutions (1) 500 Regions Visited (3) 600 Robots Destroyed (12) 60 Value Destroyed (316) 316 Prototype IDs (0) 0 Alien Tech Used (0) 0 Bonus (0) 0 TOTAL SCORE: 1476 Bonus ------- None Cogmind --------- Core Integrity 361/400 Matter 271/300 Energy 99/100 System Corruption 2% Temperature Cool (0) Movement Core (50) Location -9/Materials Parts ------- > --- POWER (1) -------- (None) > --- PROPULSION (2) --- (None) > --- UTILITY (3) ------ Targeting Computer Targeting Computer Targeting Computer > --- WEAPON (3) ------- (None) > --- INVENTORY (5) ---- Light Ion Engine Light Ion Engine Targeting Computer Peak State ------------ > --- POWER ------------ Light Ion Engine > --- PROPULSION ------- Light Treads Light Treads > --- UTILITY ---------- Small Storage Unit Targeting Computer Targeting Computer > --- WEAPON ----------- Light Assault Rifle Light Assault Rifle > --- INVENTORY -------- Light Ion Engine Light Ion Engine Targeting Computer Targeting Computer Targeting Computer [Rating: 8] Favorites ----------- Power Light Ion Engine Engine Light Ion Engine Propulsion Light Treads Treads Light Treads Utility Targeting Computer Storage Small Storage Unit Processor Targeting Computer Weapon Light Assault Rifle Energy Gun EM Pulse Gun Ballistic Gun Light Assault Rifle Build | -11 -10 -10 -9 ------- Run | Yrd Mat Min Mat Slots Evolved 2 | . . . 2 Power . | . . . . Propulsion . | . . . . Utility 1 | . . . 1 Weapon 1 | . . . 1 Parts Attached 16 | 6 2 4 4 Power 2 | 1 . . 1 Engine 2 | 1 . . 1 Core . | . . . . Reactor . | . . . . Propulsion 3 | 2 . 1 . Treads 3 | 2 . 1 . Leg . | . . . . Wheel . | . . . . Hover . | . . . . Flight . | . . . . Utility 6 | 1 1 1 3 Device . | . . . . Storage 1 | 1 . . . Processor 5 | . 1 1 3 Hackware . | . . . . Protection . | . . . . Artifact . | . . . . Weapon 5 | 2 1 2 . Energy Gun 1 | 1 . . . Energy Cannon . | . . . . Ballistic Gun 4 | 1 1 2 . Ballistic Cannon . | . . . . Launcher . | . . . . Special Weapon . | . . . . Impact Weapon . | . . . . Slashing Weapon . | . . . . Piercing Weapon . | . . . . Special Melee Weapon . | . . . . Unidentified Prototypes . | . . . . Parts Lost 9 | . . 4 5 Power 2 | . . 1 1 Propulsion 3 | . . 1 2 Utility 2 | . . 1 1 Weapon 2 | . . 1 1 Highest Loss Streak 5 | . . 3 5 To Critical Strikes . | . . . . Average Backups 5 | . 5 6 5 Power 1 | . 1 1 2 Propulsion . | . . . . Utility 3 | . 4 4 2 Weapon . | . . . . Tool/Special . | . . . . Unused Backups 3 | . . . 3 Power 2 | . . . 2 Propulsion . | . . . . Utility 1 | . . . 1 Weapon . | . . . . Tool/Special . | . . . . Average Slot Usage (%) 89 | . 96 89 77 Engine 8 | . 14 5 8 Treads 26 | . 28 27 18 Storage 13 | . 14 14 10 Processor 14 | . 12 12 22 Energy Gun 2 | . 9 . . Ballistic Gun 22 | . 16 27 19 Peak Build Rating 8 | 6 7 7 8 Average Rating 6 | 4 6 6 6 On Entrance 4 | . 6 7 6 Naked Turns . | . . . . Heaviest Build 11 | 11 11 10 10 Greatest Support 40 | 40 40 40 40 Greatest Overweight (x) 1 | . . . 1 Average Overweight (x) . | . . . . Largest Inventory Capacity 8 | 8 8 8 8 Average Capacity 7 | 6 8 8 7 Most Carried 8 | 1 7 8 6 Average Carried 5 | . 5 6 4 Final Capacity 8 | 8 8 8 5 Final Carried 7 | 1 6 7 3 Class Distribution -------------------- 100% | Mutant Dominant Class ---------------- Mutant | -10/Materials Mutant | -10/Mines Mutant | -9/Materials Resources | -11 -10 -10 -9 ----------- Run | Yrd Mat Min Mat Matter Collected 401 | 203 40 158 . Remotely . | . . . . Salvage Created 392 | . 131 207 54 Parts 26 | . 12 13 1 Haulers Intercepted . | . . . . Recyclers Shooed . | . . . . Parts Field Recycled . | . . . . Retrieved Matter . | . . . . Parts Self-Destructed . | . . . . Prevented . | . . . . Kills | -11 -10 -10 -9 ------- Run | Yrd Mat Min Mat Combat Hostiles Destroyed 12 | . 5 6 1 Guns 12 | . 5 6 1 Classes Destroyed 3 | . 2 . 1 Swarmer 5 | . 3 2 . Grunt 6 | . 2 4 . Brawler 1 | . . . 1 Best Kill Streak 4 | . 3 4 1 Combat Bots Only 4 | . 3 4 1 Max Kills in Single Turn 1 | . 1 1 1 Gunslinging . | . . . . Exploded . | . . . . Melee . | . . . . Uniques/NPCs Destroyed . | . . . . Combat | -11 -10 -10 -9 -------- Run | Yrd Mat Min Mat Hostile Shots Fired 141 | . 47 68 26 Missed 40 | . 11 21 8 Hits 101 | . 36 47 18 Melee 3 | . . . 3 Projectile 98 | . 36 47 15 Critical Strikes 3 | . . 2 1 Damage Taken 1076 | . 310 490 276 Core 266 | . 82 145 39 Absorbed by Shields . | . . . . Core Remaining (%) 54 | 100 . 9 . Volleys Fired 68 | . 32 28 8 Largest 2 | . 2 2 2 Hottest 60 | . 60 40 40 Shots Fired 111 | . 44 53 14 Gun 111 | . 44 53 14 Cannon . | . . . . Launcher . | . . . . Special . | . . . . Kinetic 102 | . 35 53 14 Thermal . | . . . . Explosive . | . . . . Electromagnetic 9 | . 9 . . Robot Hit Streak 14 | . 13 14 11 Robot Miss Streak 6 | . 6 2 1 Penetration Max . | . . . . Secondary Targets 1 | . . 1 . Max Gunslinging Chain 1 | . . 1 . Shots Hit Robots 79 | . 26 40 13 Core Hits 27 | . 10 15 2 Critical Kills . | . . . . Critical Parts Destroyed . | . . . . Critical Strikes . | . . . . Melee Attacks . | . . . . Impact . | . . . . Slashing . | . . . . Piercing . | . . . . Sneak Attacks . | . . . . Combat Hostiles . | . . . . Follow-up Attacks . | . . . . Damage Inflicted 655 | . 226 318 111 Guns 655 | . 226 318 111 Cannons . | . . . . Explosions . | . . . . Melee . | . . . . Ramming . | . . . . Kinetic 603 | . 174 318 111 Thermal . | . . . . Explosive . | . . . . Electromagnetic 52 | . 52 . . Impact . | . . . . Slashing . | . . . . Piercing . | . . . . Highest Corruption 2 | . . . 2 Average Corruption 2 | . . . 2 Corruption Purged . | . . . . Corruption Blocked . | . . . . Overload Shots . | . . . . Overflow Damage . | . . . . Projectiles . | . . . . Explosions . | . . . . Melee . | . . . . Knockbacks . | . . . . Impact . | . . . . Kinetic . | . . . . Secondary . | . . . . Self-Inflicted Damage . | . . . . Shots . | . . . . Rammed . | . . . . Targets Rammed . | . . . . Kicked . | . . . . Crushed . | . . . . Highest Temperature 40 | . 40 23 6 Average Temperature 10 | . 15 5 4 Received Heat Transfer 303 | . 24 234 45 Siege Activations . | . . . . Martial Activations . | . . . . Shielding Activations . | . . . . Robots Disrupted . | . . . . Combat Hostiles . | . . . . Robots Corrupted . | . . . . Combat Hostiles . | . . . . Parts Fried . | . . . . Impact Corruptions . | . . . . Robots Melted . | . . . . Combat Hostiles . | . . . . Parts Melted . | . . . . Heat Transferred . | . . . . Parts Sabotaged . | . . . . Parts Stolen . | . . . . Parts Stripped . | . . . . Power Chain Reactions . | . . . . Alert | -11 -10 -10 -9 ------- Run | Yrd Mat Min Mat Maximum Alert Level . | . . . . Low Security (%) 100 | 100 100 100 100 Level 1 . | . . . . Level 2 . | . . . . Level 3 . | . . . . Level 4 . | . . . . Level 5 . | . . . . High Security . | . . . . Max Security . | . . . . Peak Influence 70 | . 60 70 30 Initial 7 | . . 7 3 Average 13 | . 11 20 3 Influence Increases 309 | . 129 150 30 Destroy 0b10 Robot/C 240 | . 100 120 20 Destroy Leader 60 | . 20 30 10 Successful Hack 9 | . 9 . . Influence Decreases 299 | . 109 160 30 Entered New Map 20 | . . 13 7 Time Decay 185 | . 55 117 13 Lost Part 40 | . . 30 10 Purge Threat 54 | . 54 . . Squads Dispatched 1 | . 1 . . Investigation . | . . . . Extermination . | . . . . Reinforcement 1 | . 1 . . Assault . | . . . . Garrison . | . . . . Intercept . | . . . . Searches Triggered . | . . . . Construction Impeded . | . . . . Haulers Reinforced . | . . . . Active Scanning Responses . | . . . . Cargo Convoy Interrupts . | . . . . Stealth | -11 -10 -10 -9 --------- Run | Yrd Mat Min Mat Distress Signals 3 | . 2 . 1 Communications Jammed . | . . . . Distress Signals . | . . . . Times Spotted 25 | . 9 7 9 Peak Tracking Total 8 | . 3 5 8 Tactical Retreats . | . . . . Traps | -11 -10 -10 -9 ------- Run | Yrd Mat Min Mat Traps Triggered . | . . . . Indirectly . | . . . . Trap Hack Attempts . | . . . . Triggered . | . . . . Disarmed . | . . . . Reprogrammed . | . . . . Reused . | . . . . Traps Extracted . | . . . . Installed . | . . . . Triggered . | . . . . Machines | -11 -10 -10 -9 ---------- Run | Yrd Mat Min Mat Machines Disabled . | . . . . Max in Single Turn . | . . . . Machines Repaired . | . . . . Machines Dismantled . | . . . . Machines Sabotaged . | . . . . Overloaded Fab Kills . | . . . . Hacking | -11 -10 -10 -9 --------- Run | Yrd Mat Min Mat Machines Accessed 3 | . 3 . . Terminals 3 | . 3 . . Fabricators . | . . . . Repair Stations . | . . . . Recycling Units . | . . . . Scanalyzers . | . . . . Garrison Access . | . . . . Total Hacks 7 | . 7 . . Successful 3 | . 3 . . Failed 4 | . 4 . . Catastrophic . | . . . . Database Lockouts . | . . . . Manual 6 | . 6 . . Terminals 7 | . 7 . . Fabricators . | . . . . Repair Stations . | . . . . Recycling Units . | . . . . Scanalyzers . | . . . . Garrison Access . | . . . . Terminal Hacks 1 | . 1 . . Unreport Threat 1 | . 1 . . Fabricator Hacks . | . . . . Repair Station Hacks . | . . . . Recycling Unit Hacks . | . . . . Scanalyzer . | . . . . Garrison Access Hacks . | . . . . Unauthorized Hacks 2 | . 2 . . Terminals 2 | . 2 . . Botnet 2 | . 2 . . Fabricators . | . . . . Repair Stations . | . . . . Recycling Units . | . . . . Scanalyzers . | . . . . Garrison Access . | . . . . Data Cores Recovered . | . . . . Used . | . . . . Hacking Detections 3 | . 3 . . Full Trace Events . | . . . . Feedback Events . | . . . . Feedback Blocked . | . . . . Robot Schematics Acquired . | . . . . Robots Built . | . . . . Authchips . | . . . . Time . | . . . . Total Robot Build Rating . | . . . . Part Schematics Acquired . | . . . . Parts Built . | . . . . Authchips . | . . . . Time . | . . . . Total Part Build Rating . | . . . . Parts Repaired . | . . . . Time . | . . . . Parts Recycled . | . . . . Recycled Matter . | . . . . Retrieved Matter . | . . . . Retrieved Components . | . . . . Parts Scanalyzed . | . . . . Part Schematics Acquired . | . . . . Parts Damaged . | . . . . Bothacking | -11 -10 -10 -9 ------------ Run | Yrd Mat Min Mat Used RIF Installer . | . . . . Robots Hacked . | . . . . Non-combat . | . . . . Combat . | . . . . Robot Hacks Applied . | . . . . Relay Couplers Released . | . . . . Fabnet Peak Effective % . | . . . . Robots Rewired . | . . . . Allies Hacked . | . . . . Hacks Repelled . | . . . . Allies | -11 -10 -10 -9 -------- Run | Yrd Mat Min Mat Total Allies . | . . . . Largest Group . | . . . . Highest-Rated Group . | . . . . Highest-Rated Ally . | . . . . Total Orders . | . . . . Ally Attacks . | . . . . Total Damage . | . . . . Kills . | . . . . Allies Corrupted . | . . . . Allies Melted . | . . . . Intel | -11 -10 -10 -9 ------- Run | Yrd Mat Min Mat Active Infowar (turns) . | . . . . Robot Analysis Total . | . . . . Derelict Logs Recovered . | . . . . Drone Launches . | . . . . Drone Recoveries . | . . . . Exploration | -11 -10 -10 -9 ------------- Run | Yrd Mat Min Mat Turns Passed 797 | 61 226 398 112 Spaces Moved 391 | 37 93 190 71 Core 31 | 6 . . 25 Treads 360 | 31 93 190 46 Legs . | . . . . Wheels . | . . . . Hover . | . . . . Flight . | . . . . Fastest Speed 50 | 50 160 160 50 Average Speed 151 | 142 160 160 121 Slowest Speed 160 | 160 160 160 160 Overloaded Moves . | . . . . Propulsion Burnouts . | . . . . Robots Hopped . | . . . . Potential Cave-ins . | . . . . Cave-ins Triggered . | . . . . Exploration Rate (%) 21 | 3 25 51 7 Regions Visited 3 Branch Regions 1 Pre-discovered Areas . | . . . . Known Exits Taken . | . . . . Unknown Exits Taken 3 | 1 1 1 . Scrap Searched 1 | . . 1 . Spaces Dug . | . . . . Terrain Destroyed . | . . . . Melee . | . . . . Projectile . | . . . . AOE . | . . . . Terrain Rammed . | . . . . Walls Destroyed . | . . . . Machines Disabled . | . . . . Actions | -11 -10 -10 -9 --------- Run | Yrd Mat Min Mat Total 504 | 43 133 242 86 Wait 16 | . . 15 1 Move 388 | 36 92 189 71 Hop . | . . . . Pick Up 11 | 1 6 4 . Fast Attach 7 | 6 1 . . Attach 8 | . 1 3 4 Detach . | . . . . Swap 2 | . . 2 . Drop 4 | . 1 1 2 Fire 68 | . 32 28 8 Melee . | . . . . Ram . | . . . . Kick . | . . . . Crush . | . . . . Escape Stasis . | . . . . Rewire . | . . . . Trap . | . . . . Miscellaneous . | . . . . Route ------- -11/Scrapyard -10/Materials -10/Mines -9/Materials History --------- Turn | Location | Event 4 | -11/Scrapyard | Discovered new exit (range 15) 62 | -11/Scrapyard | Entered Materials 249 | -10/Materials | Discovered new exit (range 13) 288 | -10/Materials | Entered Mines 304 | -10/Mines | Build established: Mutant 459 | -10/Mines | Core integrity fell below 50% 498 | -10/Mines | Lost 3 parts (1p1u1w) 607 | -10/Mines | Core integrity fell below 20% 681 | -10/Mines | Discovered new exit (range 2) 686 | -10/Mines | Entered Materials 686 | -9/Materials | Evolved 2 slots: Utility x1, Weapon x1 798 | -9/Materials | Self-destructed Last Messages --------------- G-34 Mercenary destroyed. K-01 Serf collects debris. Acquired 30 matter. K-01 Serf collects debris. Acquired 7 matter. K-01 Serf collects debris. EXIT=FOUND PARAMETERS=UTILITY+1,WEAPON+1 LOCATION=UNKNOWN GOAL=ESCAPE W-16 Scout sends out distress signal. Lgt. Treads destroyed. Lgt. Assault Rifle destroyed. Targeting Computer destroyed. System corrupted by crushing effect (+1). B-36 Bruiser destroyed. Lgt. Ion Engine destroyed. Dropped Lgt. Assault Rifle. Dropped Sml. Storage Unit. T-07 Excavator is excavating. Map ----- +----------------------------------------------------+ | ??????????????????????????????? | | ??????????????????????????????? | | ??????????????????????????????? | | ??????????????????????????????? | | ??????????????????????????????? | | ??????????????????????????????? | | ??????????????????????????????? | | ??????????????????????????????? | | ??????????????????????????????? | | ????????????#?????????????????? | | ????????????# ????????????????? | | ???????????## #???????????????? | | ???????????? #####??????????? | | ?????????????? /% ???????????? | | ???????????????#!#????????????? | | ???????????????#[#????????????? | | ???????????????# #????????????? | | ???????????????# #????????????? | | ??????##???????# #????????????? | | ???### #???????# #????????????? | | ???# ????????# #????????????? | | ???# #?????????# #????????????? | | ???# ########### #????????????? | | ???# ss #????????????? | | ???# ######## #????????????? | | ???# @ ########+##???????????? | | ???# # #???????????? | | ???## # """ #???????????? | | ????# # """ #???????????? | | ????# # """ #???????????? | | ????# + "S #???????????? | | ????# # """ #???????????? | | ????# # "" #???????????? | | ????# # #???????????? | | ????# ###########???????????? | | ????# # #????????????? | | ????# # """ #????????????? | | ????# # """"" #????????????? | | ????# # """"" #????????????? | | ????# + """"" #????????????? | | ????# # """ #????????????? | | ????# # #????????????? | | ????# # #????????????? | | ????##### *#????????????? | | ????????##########????????????? | | ??????????????????????????????? | | ??????????????????????????????? | | ??????????????????????????????? | | ??????????????????????????????? | | ??????????????????????????????? | +----------------------------------------------------+ Best States ------------- Heat Dissipation 28 Energy Generation 10 Energy Capacity 125 Matter Stores 300 Matter Capacity 300 Sight Range 16 Terrain Scan Density 10 Evasion (%) 50 Targeting Accuracy 15 Recoil Reduction 2 Item Schematics ----------------- None Robot Schematics ------------------ None Fabricated ------------ Nothing Repaired ---------- Nothing Alien Tech Used ----------------- None Achievements -------------- None Challenges ------------ None Game ------ Seed GravityTargetingStabilizer Manual? 0 Play Time 00:06:10 Cumulative 85.0 hours Start 2025.07.04 @ 18:01:28 End 2025.07.04 @ 18:07:48 Sessions 1 Manual Loads 0 Difficulty Rogue Special Mode None Game No. 91 Rogue 91 Adventurer 0 Explorer 0 Win Type - Total 1 Types 1/0/0/0/0/0/0/0/0/0 Lore% 65 Gallery% 53 Achievement% 48 Wizard Run 0 Options --------- Layout 1 ASCII 0 Keyboard 0 Movement Mouse Keybinds 0 Fullscreen 2 Font 24/Smallcaps Map View 50x35 Zoom Use 0% Tactical HUD 0 Map Filters NONE Filters NONE Steam 1 RUN: 25baa954-6bf4-4b55-912c-e28a4c4fe7d9